bitfinex/quotes_BTCUSD_20250713
["timestamp","ask_amount","ask_price","bid_price","bid_amount"]
[1752364800237,0.004,117300.0,117290.0,0.03628]
[1752364805206,0.004,117300.0,117290.0,0.2686]
[1752364811995,0.0001535,117300.0,117290.0,0.2686]
[1752364812461,5.181e-05,117300.0,117290.0,0.2686]
[1752364812790,0.002,117310.0,117290.0,0.2686]
[1752364812998,0.002,117310.0,117300.0,0.0305]
[1752364813199,0.002,117310.0,117300.0,0.03567]
[1752364814267,0.002,117310.0,117300.0,0.03667]
[1752364816031,0.002,117310.0,117300.0,0.05121085]
[1752364817756,0.002,117310.0,117300.0,0.03667]
[1752364818169,0.002,117310.0,117300.0,0.03867]
[1752364824147,0.002,117310.0,117300.0,0.13864078]
[1752364827468,8.574e-05,117310.0,117300.0,0.13864078]
[1752364832472,8.574e-05,117310.0,117300.0,0.19864078]
[1752364832735,8.574e-05,117310.0,117300.0,0.19784078]
[1752364837325,3.87e-06,117310.0,117300.0,0.19784078]
[1752364845939,3.87e-06,117310.0,117300.0,0.53784078]
[1752364847342,0.02063,117330.0,117300.0,0.53784078]
[1752364847498,0.0157,117320.0,117310.0,0.12996]
[1752364847668,0.0157,117320.0,117310.0,0.13493]
[1752364849816,0.0157,117320.0,117310.0,0.23705]
[1752364850012,0.03282,117320.0,117310.0,0.23705]
[1752364854891,0.03605,117320.0,117310.0,0.23208]
[1752364858730,0.03605,117320.0,117310.0,0.23308]
[1752364860002,0.03605,117320.0,117310.0,0.23508]
[1752364863952,0.03282,117320.0,117310.0,0.23705]
[1752364864506,0.03597,117320.0,117310.0,0.23508]
[1752364865808,0.12139993,117320.0,117310.0,0.23504]
[1752364876932,0.12406358,117320.0,117310.0,0.23504]
[1752364877136,0.12139993,117320.0,117310.0,0.23504]
[1752364891633,0.37139993,117320.0,117310.0,0.23504]
[1752364906266,0.71139993,117320.0,117310.0,0.23504]
[1752364929057,0.69629993,117320.0,117310.0,0.23504]
[1752364929275,0.69314993,117320.0,117310.0,0.23708]
[1752364929488,0.67542993,117320.0,117310.0,0.27066]
[1752364935658,0.67752993,117320.0,117310.0,0.24026]
[1752364936083,0.67752993,117320.0,117310.0,0.23708]
[1752364937931,0.67752993,117320.0,117310.0,0.23504]
[1752364938158,0.77553466,117320.0,117310.0,0.10512]
[1752364938396,0.80109466,117320.0,117310.0,0.17004]
[1752364938629,0.6211,117300.0,117290.0,0.10212]
[1752364938844,0.6211,117300.0,117290.0,0.16704]
[1752364938845,0.79723986,117300.0,117290.0,0.16704]
[1752364939071,0.79723986,117300.0,117290.0,0.10212]
[1752364939250,0.82280286,117300.0,117290.0,0.16704]
[1752364939905,0.84876021,117300.0,117290.0,0.16704]
[1752364940081,0.84876021,117300.0,117290.0,0.10512]
[1752364940286,0.84876021,117300.0,117290.0,0.17004]
[1752364940490,0.76333028,117300.0,117290.0,0.16704]
[1752364943338,0.76333028,117300.0,117290.0,0.18756]
[1752364943339,0.72695028,117300.0,117290.0,0.18756]
[1752364943511,0.45138728,117300.0,117290.0,0.20336]
[1752364943716,0.42542993,117300.0,117290.0,0.20336]
[1752364944484,0.42542993,117300.0,117290.0,0.17226]
[1752364946792,0.42752993,117300.0,117290.0,0.17226]
[1752364950467,0.51773692,117300.0,117290.0,0.232]
[1752364950679,0.53423692,117300.0,117290.0,0.232]
[1752364950888,0.55979792,117300.0,117290.0,0.232]
[1752364952243,0.48917093,117300.0,117290.0,0.232]
[1752364953539,0.51454977,117300.0,117290.0,0.232]
[1752364968926,0.45099093,117300.0,117290.0,0.26839]
[1752364969130,0.42542993,117300.0,117290.0,0.26839]
[1752364970320,0.42542993,117300.0,117290.0,0.23709]
[1752364970480,0.43064993,117300.0,117290.0,0.23407]
[1752364970693,0.50277082,117300.0,117290.0,0.232]
[1752364970882,0.53367082,117300.0,117290.0,0.232]
[1752364972179,0.46154993,117300.0,117290.0,0.232]
[1752364972530,0.48656783,117300.0,117290.0,0.232]
[1752364990579,0.45566783,117300.0,117290.0,0.232]
[1752364990935,0.47186783,117300.0,117290.0,0.232]
[1752364991389,0.48796783,117300.0,117290.0,0.232]
[1752364992845,0.56432051,117300.0,117290.0,0.232]
[1752364995125,0.54822051,117300.0,117290.0,0.232]
[1752364995665,0.54822051,117300.0,117290.0,0.12988]
[1752364996930,0.52890051,117300.0,117290.0,0.12988]
[1752365003093,0.54806051,117300.0,117290.0,0.12988]
[1752365004125,0.56306051,117300.0,117290.0,0.12988]
[1752365011235,0.25,117290.0,117280.0,0.10416]
[1752365011428,0.45087598,117290.0,117280.0,0.10416]
[1752365012409,0.4509257,117290.0,117280.0,0.10616]
[1752365012645,0.4509257,117290.0,117280.0,0.23596]
[1752365015624,0.4509257,117290.0,117280.0,0.23396]
[1752365015998,0.4519257,117290.0,117280.0,0.23396]
[1752365019893,0.37372965,117290.0,117280.0,0.23396]
[1752365027670,0.35752965,117290.0,117280.0,0.23396]
[1752365031770,0.37282965,117290.0,117280.0,0.23396]
[1752365034026,0.37282965,117290.0,117280.0,0.1318]
[1752365042630,0.37182965,117290.0,117280.0,0.1318]
[1752365042835,0.45570637,117290.0,117280.0,0.1318]
[1752365043032,0.45770637,117290.0,117280.0,0.1318]
[1752365043240,0.45870637,117290.0,117280.0,0.1318]
[1752365054057,0.44340637,117290.0,117280.0,0.1318]
[1752365056517,0.35952965,117290.0,117280.0,0.1318]
[1752365056726,0.34046965,117290.0,117280.0,0.13377]
[1752365056958,0.34046965,117290.0,117280.0,0.13682]
[1752365060203,0.34046965,117290.0,117280.0,0.13377]
[1752365060418,0.71422965,117290.0,117280.0,0.1318]
[1752365060810,0.79071111,117290.0,117280.0,0.1318]
[1752365063217,0.81627711,117290.0,117280.0,0.1318]
[1752365077016,0.81627711,117290.0,117270.0,0.10521]
[1752365077273,0.08809449,117280.0,117270.0,0.10521]
[1752365077471,0.08809449,117280.0,117270.0,0.10717]
[1752365077640,0.16978966,117280.0,117270.0,0.10717]
[1752365077968,0.17191966,117280.0,117270.0,0.10717]
[1752365078087,0.17191966,117280.0,117270.0,0.10817]
[1752365078301,0.17191966,117280.0,117270.0,0.23789]
[1752365078497,0.17191966,117280.0,117270.0,0.23689]
[1752365078705,0.17191966,117280.0,117270.0,0.23789]
[1752365089232,0.17191966,117280.0,117270.0,0.13573]
[1752365100741,0.1692551,117280.0,117270.0,0.13268]
[1752365100943,0.1692551,117280.0,117270.0,0.13072]
[1752365100944,0.18999966,117280.0,117270.0,0.13072]
[1752365101167,0.2030351,117280.0,117270.0,0.13072]
[1752365101760,0.5430351,117280.0,117270.0,0.13072]
[1752365102181,0.5686041,117280.0,117270.0,0.12972]
[1752365102382,0.5696041,117280.0,117270.0,0.12972]
[1752365103479,0.5706041,117280.0,117270.0,0.12972]
[1752365111571,0.25,117270.0,117260.0,0.10416]
[1752365111776,0.45525442,117270.0,117260.0,0.23396]
[1752365112138,0.59,117250.0,117240.0,0.12372]
[1752365112337,0.67542993,117250.0,117240.0,0.12575]
[1752365112557,0.67542993,117250.0,117240.0,0.19063]
[1752365112959,0.42542993,117250.0,117240.0,0.19063]
[1752365113496,0.42447962,117250.0,117240.0,0.19063]
[1752365114057,0.42447962,117250.0,117240.0,0.19163]
[1752365115593,0.42447962,117250.0,117240.0,0.17503]
[1752365116817,0.43311813,117250.0,117240.0,0.17503]
[1752365117397,0.43311813,117250.0,117240.0,0.17603]
[1752365119545,0.47930234,117250.0,117240.0,0.17603]
[1752365120295,0.43311813,117250.0,117240.0,0.17603]
[1752365128662,0.68311813,117250.0,117240.0,0.20873]
[1752365128871,0.43311813,117250.0,117240.0,0.20873]
[1752365130664,0.09411813,117250.0,117240.0,0.20873]
[1752365161045,0.09411813,117250.0,117240.0,0.17603]
[1752365161596,0.09411813,117250.0,117240.0,0.10616]
[1752365161597,0.54021399,117250.0,117240.0,0.10616]
[1752365161774,0.53754875,117250.0,117240.0,0.171]
[1752365163479,0.46947813,117250.0,117240.0,0.171]
[1752365192170,0.46947813,117250.0,117240.0,0.10616]
[1752365192350,0.46947813,117250.0,117240.0,0.171]
[1752365193112,0.54398314,117250.0,117240.0,0.171]
[1752365196342,0.56955814,117250.0,117240.0,0.171]
[1752365196765,0.56955814,117250.0,117240.0,0.17]
[1752365197291,0.57055814,117250.0,117240.0,0.17]
[1752365198928,0.57055814,117250.0,117240.0,0.169]
[1752365200350,0.57155814,117250.0,117240.0,0.169]
[1752365200890,0.49705313,117250.0,117240.0,0.169]
[1752365201450,0.48841462,117250.0,117240.0,0.169]
[1752365206548,0.48841462,117250.0,117240.0,0.06684]
[1752365206752,0.4969245,117250.0,117240.0,0.06684]
[1752365211151,0.4969245,117250.0,117240.0,0.002]
[1752365211354,0.4969245,117250.0,117240.0,0.06684]
[1752365211540,0.57161695,117250.0,117240.0,0.06684]
[1752365230798,0.56310707,117250.0,117240.0,0.06684]
[1752365233201,0.48841462,117250.0,117240.0,0.06684]
[1752365236351,0.49689586,117250.0,117240.0,0.06684]
[1752365236477,0.46659586,117250.0,117240.0,0.06684]
[1752365237144,0.45514462,117250.0,117240.0,0.06884]
[1752365238103,0.70305462,117250.0,117240.0,0.10339]
[1752365238309,0.42747962,117250.0,117240.0,0.10339]
[1752365239338,0.43604273,117250.0,117240.0,0.10339]
[1752365242689,0.46475703,117250.0,117240.0,0.10339]
[1752365242865,0.46672703,117250.0,117240.0,0.06884]
[1752365244723,0.44103273,117250.0,117240.0,0.06884]
[1752365245544,0.46660573,117250.0,117240.0,0.06884]
[1752365247224,0.46660573,117250.0,117240.0,0.06684]
[1752365247435,0.49750573,117250.0,117240.0,0.06684]
[1752365252424,0.48894262,117250.0,117240.0,0.06684]
[1752365252647,0.67208691,117250.0,117240.0,0.06684]
[1752365252855,0.75751684,117250.0,117240.0,0.06684]
[1752365253777,0.95520198,117250.0,117240.0,0.06684]
[1752365254320,0.95420198,117250.0,117240.0,0.06684]
[1752365254700,0.95620198,117250.0,117240.0,0.06684]
[1752365254882,0.95620198,117250.0,117240.0,0.002]
[1752365255092,0.34,117230.0,117220.0,0.10725]
[1752365255314,0.34,117230.0,117220.0,0.17417]
[1752365255315,0.86055422,117230.0,117220.0,0.17417]
[1752365255643,0.88613222,117230.0,117220.0,0.17112]
[1752365256599,0.88613222,117230.0,117220.0,0.17212]
[1752365258152,0.97156215,117230.0,117220.0,0.17112]
[1752365258356,0.99867081,117230.0,117220.0,0.17112]
[1752365258565,0.99967081,117230.0,117220.0,0.17112]
[1752365260462,0.73109659,117230.0,117220.0,0.17426]
[1752365260720,0.91424088,117230.0,117220.0,0.17426]
[1752365262621,0.91424088,117230.0,117220.0,0.17112]
[1752365267931,0.73109659,117230.0,117220.0,0.17426]
[1752365268176,0.91424088,117230.0,117220.0,0.17426]
[1752365268378,0.73109659,117230.0,117220.0,0.17426]
[1752365268556,0.91424088,117230.0,117220.0,0.17426]
[1752365270470,0.73109659,117230.0,117220.0,0.17426]
[1752365270669,0.91424088,117230.0,117220.0,0.17426]
[1752365271535,0.99967081,117230.0,117220.0,0.17426]
[1752365271888,0.73109659,117230.0,117220.0,0.17426]
[1752365272058,0.91424088,117230.0,117220.0,0.17426]
[1752365273303,0.73109659,117230.0,117220.0,0.17426]
[1752365273477,0.91424088,117230.0,117220.0,0.17426]
[1752365276239,0.73109659,117230.0,117220.0,0.17426]
[1752365276373,0.91424088,117230.0,117220.0,0.17426]
[1752365279871,0.91424088,117230.0,117220.0,0.07206]
[1752365280191,0.99967081,117230.0,117220.0,0.06892]
[1752365280404,1.00268081,117230.0,117220.0,0.06892]
[1752365281154,0.99967081,117230.0,117220.0,0.06892]
[1752365281374,0.99807081,117230.0,117220.0,0.06892]
[1752365281563,0.91565088,117230.0,117220.0,0.06676]
[1752365285746,0.91264088,117230.0,117220.0,0.06676]
[1752365285920,0.91264088,117230.0,117220.0,0.06872]
[1752365289626,0.91560088,117230.0,117220.0,0.06676]
[1752365289771,0.93090088,117230.0,117220.0,0.06676]
[1752365290699,0.94630088,117230.0,117220.0,0.06676]
[1752365292699,0.76315659,117230.0,117220.0,0.06676]
[1752365292866,0.94630088,117230.0,117220.0,0.06676]
[1752365293430,0.93090088,117230.0,117220.0,0.06676]
[1752365293854,1.11404517,117230.0,117220.0,0.06676]
[1752365294083,1.12944517,117230.0,117220.0,0.06676]
[1752365294932,1.2148751,117230.0,117220.0,0.06676]
[1752365295910,1.22941595,117230.0,117220.0,0.06676]
[1752365299226,0.59,117210.0,117200.0,0.14018]
[1752365299514,0.85857422,117210.0,117200.0,0.14214]
[1752365300309,0.85857422,117210.0,117200.0,0.2079]
[1752365300508,0.85862389,117210.0,117200.0,0.2079]
[1752365301367,0.85862389,117210.0,117200.0,0.2109]
[1752365302555,0.85862389,117210.0,117200.0,0.2079]
[1752365303088,0.85862389,117210.0,117200.0,0.2099]
[1752365304153,0.85862389,117210.0,117200.0,0.2089]
[1752365304293,0.85862389,117210.0,117200.0,0.2099]
[1752365309303,0.85862389,117210.0,117200.0,0.1775]
[1752365310796,0.86069389,117210.0,117200.0,0.1775]
[1752365313450,0.86069389,117210.0,117200.0,0.0753]
[1752365314393,0.94612382,117210.0,117200.0,0.0753]
[1752365316280,0.94612382,117210.0,117200.0,0.07212]
[1752365317586,0.86069389,117210.0,117200.0,0.07212]
[1752365325213,0.6775496,117210.0,117200.0,0.07212]
[1752365325514,0.86069389,117210.0,117200.0,0.07212]
[1752365340818,0.86378389,117210.0,117200.0,0.07016]
[1752365341033,0.88008389,117210.0,117200.0,0.07016]
[1752365341228,0.96551382,117210.0,117200.0,0.07016]
[1752365342040,0.96551382,117210.0,117200.0,0.06916]
[1752365342422,0.96651382,117210.0,117200.0,0.06916]
[1752365342782,0.97505955,117210.0,117200.0,0.06916]
[1752365343222,0.97505955,117210.0,117200.0,0.06716]
[1752365343426,1.17440384,117210.0,117200.0,0.06716]
[1752365344029,1.08897391,117210.0,117200.0,0.06716]
[1752365345420,0.83897391,117210.0,117200.0,0.06716]
[1752365347669,0.83897391,117210.0,117200.0,0.0024]
[1752365347846,0.83897391,117210.0,117200.0,0.06716]
[1752365350272,0.65582962,117210.0,117200.0,0.06716]
[1752365350448,0.68670594,117210.0,117200.0,0.06716]
[1752365350974,0.86985023,117210.0,117200.0,0.06716]
[1752365354523,0.68670594,117210.0,117200.0,0.06716]
[1752365354870,0.65582962,117210.0,117200.0,0.06716]
[1752365355617,0.47268533,117210.0,117200.0,0.06716]
[1752365355796,0.65582962,117210.0,117200.0,0.06716]
[1752365370301,0.62332962,117210.0,117200.0,0.06716]
[1752365370490,0.80647391,117210.0,117200.0,0.06716]
[1752365370698,0.89190384,117210.0,117200.0,0.06716]
[1752365378025,1.17500384,117210.0,117200.0,0.06716]
[1752365378432,1.20058784,117210.0,117200.0,0.06716]
[1752365379355,1.20058784,117210.0,117200.0,0.06712]
[1752365392713,1.18408784,117210.0,117200.0,0.06712]
[1752365409996,1.18308784,117210.0,117200.0,0.06712]
[1752365410843,1.19878784,117210.0,117200.0,0.06712]
[1752365416258,1.16648784,117210.0,117200.0,0.06712]
[1752365451072,1.34963213,117210.0,117200.0,0.06712]
[1752365460568,1.16648784,117210.0,117200.0,0.06712]
[1752365460775,1.2642022,117210.0,117200.0,0.06712]
[1752365461300,1.29434305,117210.0,117200.0,0.06712]
[1752365461513,1.31024305,117210.0,117200.0,0.06712]
[1752365462193,1.30924305,117210.0,117200.0,0.06712]
[1752365462421,1.31024305,117210.0,117200.0,0.06712]
[1752365462640,1.39667298,117210.0,117200.0,0.06712]
[1752365471672,1.38077298,117210.0,117200.0,0.06712]
[1752365472412,1.36517298,117210.0,117200.0,0.06712]
[1752365473366,1.36433298,117210.0,117200.0,0.06712]
[1752365474782,1.27890305,117210.0,117200.0,0.06712]
[1752365474983,1.07605791,117210.0,117200.0,0.10442]
[1752365475430,1.07815791,117210.0,117200.0,0.07242]
[1752365475640,1.07815791,117210.0,117200.0,0.06919]
[1752365475843,1.2613022,117210.0,117200.0,0.06919]
[1752365476051,1.34673213,117210.0,117200.0,0.06919]
[1752365480838,1.2613022,117210.0,117200.0,0.06919]
[1752365482892,1.2644522,117210.0,117200.0,0.06919]
[1752365485261,1.2644522,117210.0,117200.0,0.0024]
[1752365485262,1.31159305,117210.0,117200.0,0.0024]
[1752365485462,1.31159305,117210.0,117200.0,0.067]
[1752365485674,1.39702298,117210.0,117200.0,0.067]
[1752365501955,1.09269876,117210.0,117200.0,0.10376]
[1752365502079,1.09059876,117210.0,117200.0,0.10376]
[1752365503551,1.27572305,117210.0,117200.0,0.08806]
[1752365504686,1.27572305,117210.0,117200.0,0.10376]
[1752365506347,1.27572305,117210.0,117200.0,0.08806]
[1752365506546,1.36115298,117210.0,117200.0,0.07216]
[1752365507540,1.27572305,117210.0,117200.0,0.10376]
[1752365508299,1.27572305,117210.0,117200.0,0.07216]
[1752365508929,1.27572305,117210.0,117200.0,0.10376]
[1752365510840,1.27572305,117210.0,117200.0,0.07216]
[1752365511525,1.27572305,117210.0,117200.0,0.08806]
[1752365514153,1.27572305,117210.0,117200.0,0.07216]
[1752365515979,1.02572305,117210.0,117200.0,0.07216]
[1752365516253,1.27572305,117210.0,117200.0,0.07216]
[1752365516520,1.05047391,117210.0,117200.0,0.10396]
[1752365531263,0.68418533,117210.0,117200.0,0.10396]
[1752365531556,1.05047391,117210.0,117200.0,0.10396]
[1752365539287,1.04983391,117210.0,117200.0,0.10396]
[1752365546751,0.68354533,117210.0,117200.0,0.10396]
[1752365547010,1.04983391,117210.0,117200.0,0.10396]
[1752365548814,1.04128818,117210.0,117200.0,0.10396]
[1752365551200,1.04996859,117210.0,117200.0,0.10396]
[1752365556817,1.04996859,117210.0,117200.0,0.08856]
[1752365557671,1.05198859,117210.0,117200.0,0.08856]
[1752365557791,1.05198859,117210.0,117200.0,0.07216]
[1752365560089,1.05198859,117210.0,117200.0,0.08876]
[1752365561144,0.68570001,117210.0,117200.0,0.08876]
[1752365561366,1.05198859,117210.0,117200.0,0.08876]
[1752365562516,1.05198859,117210.0,117200.0,0.07216]
[1752365568724,1.05198859,117210.0,117200.0,0.06915]
[1752365568927,1.05509859,117210.0,117200.0,0.067]
[1752365569141,1.23824288,117210.0,117200.0,0.067]
[1752365569983,1.25334288,117210.0,117200.0,0.067]
[1752365570564,1.26934288,117210.0,117200.0,0.067]
[1752365571240,1.26934288,117210.0,117200.0,0.16924]
[1752365573202,1.28905005,117210.0,117200.0,0.16924]
[1752365574919,1.28905005,117210.0,117200.0,0.067]
[1752365580396,1.3035909,117210.0,117200.0,0.067]
[1752365581526,1.3291749,117210.0,117200.0,0.067]
[1752365592965,1.30946773,117210.0,117200.0,0.067]
[1752365601479,1.36062773,117210.0,117200.0,0.067]
[1752365601680,1.30946773,117210.0,117200.0,0.067]
[1752365606019,1.30894773,117210.0,117200.0,0.067]
[1752365629499,1.27784773,117210.0,117200.0,0.067]
[1752365629884,1.27473773,117210.0,117200.0,0.06915]
[1752365630301,1.27775773,117210.0,117200.0,0.06915]
[1752365631205,1.29214802,117210.0,117200.0,0.06915]
[1752365631415,1.28912802,117210.0,117200.0,0.06915]
[1752365632270,1.34028802,117210.0,117200.0,0.06915]
[1752365632473,1.27473773,117210.0,117200.0,0.06915]
[1752365636830,0.70874401,117210.0,117200.0,0.10448]
[1752365637033,1.07503259,117210.0,117200.0,0.10448]
[1752365655531,1.07712259,117210.0,117200.0,0.07228]
[1752365655749,1.07712259,117210.0,117200.0,0.17452]
[1752365659013,1.07488986,117210.0,117200.0,0.17452]
[1752365670519,1.07788986,117210.0,117200.0,0.16924]
[1752365671302,1.26059415,117210.0,117200.0,0.16924]
[1752365672596,1.07744986,117210.0,117200.0,0.16924]
[1752365673414,1.07444986,117210.0,117200.0,0.17137]
[1752365680921,1.07444986,117210.0,117200.0,0.1745]
[1752365683576,1.07235986,117210.0,117200.0,0.1905]
[1752365683787,1.07235986,117210.0,117200.0,0.2065]
[1752365686038,0.82235986,117210.0,117200.0,0.2065]
[1752365686239,0.61363157,117210.0,117200.0,0.2065]
[1752365686453,0.79677586,117210.0,117200.0,0.2065]
[1752365691998,0.46244859,117210.0,117200.0,0.2065]
[1752365692208,0.80244859,117210.0,117200.0,0.2065]
[1752365701572,0.80144859,117210.0,117200.0,0.2065]
[1752365701780,0.80044859,117210.0,117200.0,0.2065]
[1752365706427,0.80572859,117210.0,117200.0,0.16924]
[1752365707807,1.02017288,117210.0,117200.0,0.16924]
[1752365708863,0.47074001,117210.0,117200.0,0.16924]
[1752365709070,1.02017288,117210.0,117200.0,0.16924]
[1752365712513,0.83702859,117210.0,117200.0,0.16924]
[1752365717573,1.02017288,117210.0,117200.0,0.16924]
[1752365725661,0.83702859,117210.0,117200.0,0.16924]
[1752365725868,0.82092859,117210.0,117200.0,0.16924]
[1752365726663,1.00407288,117210.0,117200.0,0.16924]
[1752365728328,0.45464001,117210.0,117200.0,0.16924]
[1752365728540,0.82092859,117210.0,117200.0,0.16924]
[1752365736788,0.80572859,117210.0,117200.0,0.16924]
[1752365742262,0.98887288,117210.0,117200.0,0.16924]
[1752365749043,1.00467288,117210.0,117200.0,0.16924]
[1752365753555,1.02047288,117210.0,117200.0,0.16924]
[1752365754889,1.09771856,117210.0,117200.0,0.16924]
[1752365755868,1.64715143,117210.0,117200.0,0.16924]
[1752365756078,1.09771856,117210.0,117200.0,0.16924]
[1752365756631,1.12330156,117210.0,117200.0,0.16924]
[1752365760087,1.11462115,117210.0,117200.0,0.16924]
[1752365760617,1.03737547,117210.0,117200.0,0.16924]
[1752365761929,0.59,117200.0,117190.0,0.0004]
[1752365762134,1.81081567,117200.0,117190.0,0.0004]
[1752365763295,1.81081567,117200.0,117190.0,0.12944]
[1752365763499,1.8962456,117200.0,117190.0,0.12944]
[1752365763807,1.8962456,117200.0,117190.0,0.13044]
[1752365764014,1.8962456,117200.0,117190.0,0.13144]
[1752365765103,1.9218306,117200.0,117190.0,0.13144]
[1752365770830,1.93637145,117200.0,117190.0,0.13144]
[1752365771451,1.93637145,117200.0,117190.0,0.13044]
[1752365771926,1.93637145,117200.0,117190.0,0.12944]
[1752365773487,1.92007145,117200.0,117180.0,0.10464]
[1752365773726,0.6529294,117190.0,117180.0,0.10464]
[1752365773933,0.74076273,117190.0,117180.0,0.10464]
[1752365774117,0.76634973,117190.0,117180.0,0.10464]
[1752365774608,0.76634973,117190.0,117180.0,0.2356]
[1752365774973,0.76634973,117190.0,117180.0,0.2346]
[1752365775378,0.78224973,117190.0,117180.0,0.2356]
[1752365777505,0.75094973,117190.0,117180.0,0.2356]
[1752365778546,0.76624973,117190.0,117180.0,0.2356]
[1752365783201,1.66479407,117190.0,117180.0,0.129]
[1752365783602,0.34,117180.0,117170.0,0.10264]
[1752365783808,1.6435756,117180.0,117170.0,0.10264]
[1752365784053,1.6465956,117180.0,117170.0,0.10264]
[1752365784260,1.6721856,117180.0,117170.0,0.10264]
[1752365784785,1.6721856,117180.0,117170.0,0.23168]
[1752365784988,1.6721856,117180.0,117170.0,0.23268]
[1752365788222,1.6721856,117180.0,117170.0,0.23168]
[1752365790328,1.6731856,117180.0,117170.0,0.23168]
[1752365792092,1.68772645,117180.0,117170.0,0.23164]
[1752365793467,0.29724085,117170.0,117160.0,0.0024]
[1752365793662,1.36260358,117170.0,117160.0,0.0024]
[1752365794538,1.38819658,117170.0,117160.0,0.1314]
[1752365794746,1.38819658,117170.0,117160.0,0.13189841]
[1752365795626,1.38819658,117170.0,117160.0,0.13289841]
[1752365795827,1.4131427,117170.0,117160.0,0.13289841]
[1752365796041,1.4131427,117170.0,117160.0,0.13189841]
[1752365797163,1.4131427,117170.0,117160.0,0.13289841]
[1752365798347,1.4131427,117170.0,117160.0,0.13189841]
[1752365806691,1.3966427,117170.0,117160.0,0.13189841]
[1752365808302,1.3804427,117170.0,117160.0,0.13189841]
[1752365813997,1.29501277,117170.0,117160.0,0.13189841]
[1752365818200,1.32661277,117170.0,117160.0,0.13189841]
[1752365832050,1.87604564,117170.0,117160.0,0.13189841]
[1752365834332,1.87704564,117170.0,117160.0,0.13189841]
[1752365837126,1.87904564,117170.0,117160.0,0.13189841]
[1752365837323,1.96447557,117170.0,117160.0,0.13189841]
[1752365838790,1.4150427,117170.0,117160.0,0.13189841]
[1752365850534,0.34,117160.0,117150.0,0.03431]
[1752365850766,0.9748628,117160.0,117150.0,0.036425]
[1752365850993,1.06029273,117160.0,117150.0,0.036425]
[1752365851213,1.08588673,117160.0,117150.0,0.036425]
[1752365851726,1.08588673,117160.0,117150.0,0.101025]
[1752365859588,1.08791673,117160.0,117150.0,0.070025]
[1752365863691,1.6373496,117160.0,117150.0,0.066915]
[1752365866655,1.6884996,117160.0,117150.0,0.066915]
[1752365866862,1.6373496,117160.0,117150.0,0.066915]
[1752365868393,1.6403696,117160.0,117150.0,0.066915]
[1752365870355,1.6373496,117160.0,117150.0,0.066915]
[1752365871042,1.08791673,117160.0,117150.0,0.066915]
[1752365871939,0.25,117150.0,117140.0,0.135325]
[1752365872230,0.78714844,117150.0,117140.0,0.12898002]
[1752365873101,0.78714844,117150.0,117140.0,0.19350002]
[1752365873844,0.78714844,117150.0,117140.0,0.19450002]
[1752365874046,0.78714844,117150.0,117140.0,0.19550002]
[1752365882234,0.78714844,117150.0,117140.0,0.18933502]
[1752365883525,0.97029273,117150.0,117140.0,0.18933502]
[1752365883939,0.97029273,117150.0,117140.0,0.18638502]
[1752365885698,0.97029273,117150.0,117140.0,0.18946502]
[1752365886768,0.97232273,117150.0,117140.0,0.18638502]
[1752365887537,0.97029273,117150.0,117140.0,0.18638502]
[1752365887748,0.81274244,117150.0,117140.0,0.18638502]
[1752365888152,0.81274244,117150.0,117140.0,0.18946502]
[1752365888910,0.81274244,117150.0,117140.0,0.08718502]
[1752365894204,0.81274244,117150.0,117140.0,0.08410502]
[1752365894591,0.99791673,117150.0,117140.0,0.06870502]
[1752365894794,1.00103673,117150.0,117140.0,0.06870502]
[1752365899091,0.81789244,117150.0,117140.0,0.06870502]
[1752365902520,1.00103673,117150.0,117140.0,0.06660502]
[1752365902724,1.01753673,117150.0,117140.0,0.06660502]
[1752365903553,0.83439244,117150.0,117140.0,0.06660502]
[1752365908522,0.81789244,117150.0,117140.0,0.06660502]
[1752365910303,0.81789244,117150.0,117140.0,0.06857502]
[1752365913732,0.36102393,117150.0,117140.0,0.08685502]
[1752365913947,0.11102393,117150.0,117140.0,0.10345502]
[1752365914378,0.29416822,117150.0,117140.0,0.10345502]
[1752365914584,0.08542993,117150.0,117140.0,0.08825502]
[1752365914792,0.002,117170.0,117140.0,0.08825502]
[1752365915001,0.26857422,117160.0,117140.0,0.06857502]
[1752365915211,0.60857422,117160.0,117150.0,0.01825]
[1752365915441,0.79171851,117160.0,117150.0,0.03682]
[1752365915653,0.8452039,117160.0,117150.0,0.03682]
[1752365916065,0.79171851,117160.0,117150.0,0.03682]
[1752365916781,0.79171851,117160.0,117150.0,0.03782]
[1752365921086,0.79381851,117160.0,117150.0,0.01817]
[1752365921279,0.79699851,117160.0,117150.0,0.00297]
[1752365921478,0.88242844,117160.0,117150.0,0.00297]
[1752365921977,0.87924844,117160.0,117150.0,0.00297]
[1752365922325,0.87924844,117160.0,117150.0,0.001]
[1752365922326,1.12924844,117160.0,117150.0,0.001]
[1752365922536,1.34647273,117160.0,117150.0,0.001]
[1752365922899,1.37206373,117160.0,117150.0,0.001]
[1752365924932,1.31177568,117160.0,117150.0,0.001]
[1752365938358,1.31177568,117160.0,117150.0,0.10328]
[1752365942230,1.31177568,117160.0,117150.0,0.16796]
[1752365942440,1.31177568,117160.0,117150.0,0.16706]
[1752365943597,1.22634575,117160.0,117150.0,0.16706]
[1752365943736,1.21064575,117160.0,117150.0,0.16706]
[1752365944457,1.21064575,117160.0,117150.0,0.10228]
[1752365944828,1.27178049,117160.0,117150.0,0.10228]
[1752365945775,1.27178049,117160.0,117150.0,0.16696]
[1752365945942,1.35721042,117160.0,117150.0,0.16696]
[1752365947088,1.35721042,117160.0,117150.0,0.17696]
[1752365951900,1.34201042,117160.0,117150.0,0.17696]
[1752365952102,1.37301042,117160.0,117150.0,0.17696]
[1752365955706,1.37301042,117160.0,117150.0,0.10450884]
[1752365957050,1.37301042,117160.0,117150.0,0.16926884]
[1752365968654,1.35751042,117160.0,117150.0,0.16926884]
[1752365979463,1.37251042,117160.0,117150.0,0.16926884]
[1752365980962,1.37251042,117160.0,117150.0,0.16922884]
[1752365992805,1.35751042,117160.0,117150.0,0.16922884]
[1752365998993,1.25658049,117160.0,117150.0,0.17127884]
[1752366007267,1.25658049,117160.0,117150.0,0.17299884]
[1752366032420,1.23098949,117160.0,117150.0,0.17299884]
[1752366033824,1.22780949,117160.0,117150.0,0.17299884]
[1752366034044,0.42542993,117160.0,117150.0,0.20743884]